bitfinex/quotes_SOLUSD_20260226
["timestamp","ask_amount","ask_price","bid_price","bid_amount"]
[1772070792980,3.43604162,88.545,88.512,2.3542685]
[1772070793992,11.29356492,88.546,88.49,3.93160728]
[1772070793993,3.43604162,88.529,88.49,3.93160728]
[1772070794400,3.43604162,88.529,88.484,2.36028555]
[1772070795094,3.43604162,88.527,88.485,11.30135051]
[1772070796100,3.43604162,88.519,88.485,11.30135051]
[1772070796298,3.43604162,88.519,88.485,2.36608232]
[1772070796497,3.43604162,88.519,88.481,2.36608232]
[1772070797598,11.2971373,88.518,88.48,3.93160728]
[1772070797805,3.43604162,88.517,88.477,2.36893138]
[1772070799093,3.43604162,88.515,88.48,3.93160728]
[1772070799409,3.43604162,88.515,88.48,3.92751668]
[1772070800708,3.43604162,88.525,88.491,2.37740534]
[1772070801413,3.43604162,88.559,88.521,2.38011313]
[1772070801708,3.43604162,88.529,88.48,3.92751668]
[1772070801904,3.43604162,88.519,88.481,2.38011313]
[1772070803210,3.43604162,88.517,88.482,11.30173368]
[1772070803389,3.43604162,88.517,88.47,28.25816661]
[1772070803390,3.43604162,88.517,88.473,2.38548274]
[1772070803789,3.43604162,88.517,88.48,3.92751668]
[1772070804285,3.43604162,88.517,88.481,2.38813635]
[1772070806810,3.38405219,88.515,88.483,2.39597003]
[1772070807189,3.38405219,88.515,88.471,11.30306226]
[1772070807515,3.38405219,88.515,88.481,2.39850626]
[1772070807893,3.38405219,88.522,88.491,2.39850626]
[1772070808209,3.38405219,88.525,88.491,2.39850626]
[1772070808709,3.38405219,88.507,88.46,3.92751668]
[1772070808909,3.38405219,88.507,88.461,2.401]
[1772070810312,3.38405219,88.507,88.457,39.56724735]
[1772070810313,3.38405219,88.507,88.471,2.40594057]
[1772070810505,3.38405219,88.507,88.48,3.92751668]
[1772070810713,3.38405219,88.507,88.483,2.40594057]
[1772070810897,3.38405219,88.527,88.483,2.40594057]
[1772070812105,39.53551418,88.528,88.48,3.92751668]
[1772070812106,3.49701445,88.519,88.48,3.92751668]
[1772070812902,39.53998056,88.518,88.48,3.92751668]
[1772070813218,3.49701445,88.517,88.48,6.34296528]
[1772070814707,3.49701445,88.515,88.48,6.34296528]
[1772070814908,3.49701445,88.515,88.481,2.41776087]
[1772070816730,3.49701445,88.513,88.481,2.41776087]
[1772070816930,3.49701445,88.513,88.483,2.42226506]
[1772070817229,3.49701445,88.522,88.483,2.42226506]
[1772070817531,11.29716385,88.518,88.491,2.42448957]
[1772070817833,3.49701445,88.517,88.491,2.42448957]
[1772070821918,3.49701445,88.526,88.493,2.4331537]
[1772070822132,45.1515606,88.591,88.511,2.43523224]
[1772070822133,3.49701445,88.544,88.511,2.43523224]
[1772070824028,3.49701445,88.544,88.52,6.36690833]
[1772070824029,11.29394757,88.543,88.52,6.36690833]
[1772070824214,11.29394757,88.543,88.521,2.43939165]
[1772070825721,11.29348475,88.547,88.521,2.43939165]
[1772070826128,3.49701445,88.547,88.521,2.43939165]
[1772070827225,3.49701445,88.547,88.523,2.44529789]
[1772070828548,11.29356492,88.546,88.523,2.44529789]
[1772070829250,3.49701445,88.545,88.523,2.44529789]
[1772070833654,11.29382002,88.544,88.523,2.44529789]
[1772070833856,14.79083447,88.544,88.523,2.44529789]
[1772070834149,3.49701445,88.543,88.523,2.44529789]
[1772070834553,3.49701445,88.543,88.52,3.92751668]
[1772070835056,3.49701445,88.543,88.52,6.38578582]
[1772070836549,3.49701445,88.543,88.521,13.75592456]
[1772070836733,3.49701445,88.543,88.522,2.45917012]
[1772070840057,3.47627512,88.542,88.521,2.45789156]
[1772070840251,28.22976772,88.559,88.53,3.92751668]
[1772070840252,3.47627512,88.557,88.53,3.92751668]
[1772070841055,3.47627512,88.557,88.521,11.29675444]
[1772070841056,3.47627512,88.557,88.518,2.45711608]
[1772070841256,3.47627512,88.557,88.52,3.92751668]
[1772070841559,3.47627512,88.557,88.521,2.45711608]
[1772070842461,3.47627512,88.555,88.521,2.45711608]
[1772070844598,39.52301368,88.556,88.461,2.45594754]
[1772070844599,3.47627512,88.527,88.461,2.45594754]
[1772070844752,3.47627512,88.499,88.461,2.45594754]
[1772070845353,3.47627512,88.499,88.47,3.92751668]
[1772070845561,3.47627512,88.499,88.471,2.45557876]
[1772070846149,3.47627512,88.499,88.461,2.45521134]
[1772070846453,3.47627512,88.497,88.445,2.45521134]
[1772070846650,3.47627512,88.497,88.451,2.45521134]
[1772070846835,3.47627512,88.479,88.429,2.45521134]
[1772070847035,3.47627512,88.469,88.43,6.38272802]
[1772070848457,11.30352217,88.468,88.431,13.76282691]
[1772070848759,3.47627512,88.467,88.432,2.45457528]
[1772070850945,3.47627512,88.499,88.451,2.45391169]
[1772070852238,3.47627512,88.489,88.451,2.45391169]
[1772070852444,3.47627512,88.489,88.441,2.45322448]
[1772070852962,3.47627512,88.487,88.453,2.45322448]
[1772070855768,3.47627512,88.485,88.455,2.45224661]
[1772070857650,14.77673471,88.492,88.455,2.45224661]
[1772070857851,3.47627512,88.51,88.481,2.45157133]
[1772070858063,3.47627512,88.509,88.473,2.45157133]
[1772070858363,3.47627512,88.508,88.473,2.45157133]
[1772070860561,3.47627512,88.506,88.474,11.30275561]
[1772070861367,3.47627512,88.506,88.473,13.75442873]
[1772070861654,3.47627512,88.506,88.474,2.45032405]
[1772070862675,11.29879667,88.505,88.468,2.44997851]
[1772070862871,3.47627512,88.504,88.468,2.44997851]
[1772070863168,3.47627512,88.504,88.471,2.44970005]
[1772070864157,3.47627512,88.489,88.451,2.4493656]
[1772070864576,3.47627512,88.499,88.451,2.4493656]
[1772070864949,3.47627512,88.497,88.453,2.4493656]
[1772070865265,3.47627512,88.497,88.461,2.44902697]
[1772070865962,3.47627512,88.497,88.452,39.56948401]
[1772070865963,3.52358874,88.504,88.471,2.44866826]
[1772070867564,3.52358874,88.502,88.473,2.44803522]
[1772070867967,3.52358874,88.502,88.461,11.30441663]
[1772070868160,3.52358874,88.499,88.462,2.44777409]
[1772070868362,3.52358874,88.515,88.481,2.44777409]
[1772070869582,3.52358874,88.513,88.481,2.44777409]
[1772070870282,3.52358874,88.513,88.47,3.92808691]
[1772070870283,3.52358874,88.509,88.474,13.74985453]
[1772070870455,3.52358874,88.509,88.475,2.4471779]
[1772070871781,3.52358874,88.507,88.476,11.30250011]
[1772070872086,3.52358874,88.507,88.477,2.4468761]
[1772070874286,3.33480231,88.505,88.477,2.4468761]
[1772070874672,3.33480231,88.505,88.478,11.30224462]
[1772070875082,3.33480231,88.505,88.474,13.74816824]
[1772070875385,3.33480231,88.505,88.475,2.44542669]
[1772070877493,3.33480231,88.503,88.474,11.30274155]
[1772070877691,3.33480231,88.503,88.462,2.44484189]
[1772070880589,3.33480231,88.508,88.471,2.44397485]
[1772070880786,11.29854135,88.507,88.471,2.44397485]
[1772070880990,14.63334366,88.507,88.471,2.44397485]
[1772070881167,3.33480231,88.506,88.471,2.44397485]
[1772070882674,3.33480231,88.506,88.473,2.44336243]
[1772070884999,14.63002556,88.533,88.501,2.4428401]
[1772070885298,3.33480231,88.533,88.511,2.44255362]
[1772070885879,3.33480231,88.533,88.51,3.92808691]
[1772070886280,3.33480231,88.539,88.511,2.44224887]
[1772070886595,3.33480231,88.553,88.52,6.37033578]
[1772070886989,3.33480231,88.551,88.52,17.66712812]
[1772070887880,3.33480231,88.551,88.515,11.29743697]
[1772070888398,3.33480231,88.549,88.503,11.299052]
[1772070888990,3.33480231,88.547,88.503,13.74077947]
[1772070889188,3.33480231,88.547,88.51,3.92808691]
[1772070889992,3.33480231,88.547,88.51,6.36953393]
[1772070890191,3.33480231,88.547,88.511,2.44117344]
[1772070890583,3.33480231,88.547,88.52,3.92808691]
[1772070891487,3.33480231,88.547,88.521,11.29675444]
[1772070892793,3.33480231,88.547,88.521,13.73736651]
[1772070896699,3.33480231,88.547,88.523,11.29649921]
[1772070897508,3.33480231,88.547,88.524,2.43786799]
[1772070898294,3.38342692,88.557,88.531,2.43719709]
[1772070899209,3.38342692,88.563,88.533,2.43655061]
[1772070899508,3.38342692,88.563,88.532,39.53372791]
[1772070899509,3.38342692,88.563,88.537,2.43655061]
[1772070901823,3.38342692,88.563,88.53,6.36342373]
[1772070902110,3.38342692,88.563,88.531,2.43476041]
[1772070902611,3.38342692,88.561,88.531,13.73023882]
[1772070902915,3.38342692,88.559,88.531,13.73023882]
[1772070903111,3.38342692,88.559,88.532,2.43413336]
[1772070904211,3.38342692,88.575,88.551,2.43352486]
[1772070904811,3.38342692,88.575,88.553,2.43352486]
[1772070905190,3.38342692,88.582,88.553,2.43352486]
[1772070905518,3.58342692,88.59,88.561,2.4329018]
[1772070905703,3.38342692,88.588,88.561,2.4329018]
[1772070906990,11.28833801,88.587,88.561,2.4329018]
[1772070907194,3.38342692,88.586,88.561,2.4329018]
[1772070908007,3.38342692,88.586,88.56,3.92808691]
[1772070909218,3.38342692,88.584,88.56,3.92808691]
[1772070909715,3.38342692,88.609,88.57,3.92808691]
[1772070909917,3.38342692,88.63,88.601,2.23062089]
[1772070910220,11.28378607,88.623,88.601,2.23062089]
[1772070910403,4.12808691,88.64,88.6,3.92808691]
[1772070910404,3.38342692,88.619,88.6,3.92808691]
[1772070911620,3.38342692,88.619,88.601,11.28655432]
[1772070912119,3.38342692,88.625,88.601,11.28655432]
[1772070912624,3.38342692,88.625,88.602,2.22935208]
[1772070913721,3.38342692,88.625,88.603,11.28629956]
[1772070914722,3.38342692,88.625,88.61,3.92808691]
[1772070917105,3.38342692,88.639,88.611,11.2852806]
[1772070917304,3.38342692,88.638,88.611,13.51257864]
[1772070917598,3.38342692,88.638,88.602,2.22729804]
[1772070917804,3.38342692,88.638,88.611,11.2852806]
[1772070918698,0.2,88.64,88.61,3.92808691]
[1772070918699,3.38342692,88.636,88.61,3.92808691]
[1772070919102,3.38342692,88.636,88.601,2.2268721]
[1772070919317,3.38342692,88.636,88.586,2.22646413]
[1772070919506,3.38342692,88.636,88.6,3.92808691]
[1772070920218,11.28222485,88.635,88.6,3.92808691]
[1772070920424,3.38342692,88.634,88.6,3.92808691]
[1772070920803,3.92808691,88.63,88.576,13.51580524]
[1772070921009,3.38342692,88.629,88.58,3.92808691]
[1772070921217,3.38342692,88.629,88.58,3.91816021]
[1772070921617,3.38342692,88.629,88.58,6.14382831]
[1772070922232,3.38342692,88.629,88.591,2.22527971]
[1772070922711,3.38342692,88.627,88.601,2.22527971]
[1772070924619,3.38342692,88.633,88.61,3.91816021]
[1772070924937,3.38342692,88.633,88.592,39.50695322]
[1772070924938,3.38342692,88.631,88.602,13.51085269]
[1772070927430,3.38342692,88.631,88.603,2.22297188]
[1772070927613,3.56014771,88.629,88.603,2.22297188]
[1772070928233,0.2,88.64,88.602,11.28638893]
[1772070928234,0.2,88.64,88.621,2.22261301]
[1772070928408,0.2,88.64,88.63,3.91816021]
[1772070930816,0.2,88.64,88.63,3.77735635]
[1772070931738,3.56014771,88.666,88.631,2.22155704]
[1772070931933,3.56014771,88.666,88.64,3.91816021]
[1772070932118,3.56014771,88.666,88.631,2.22155704]
[1772070933613,0.2,88.67,88.631,2.22155704]
[1772070933614,11.27840748,88.665,88.631,2.22155704]
[1772070933816,3.25000414,88.664,88.631,2.22155704]
[1772070935036,3.25000414,88.664,88.63,15.20097901]
[1772070935218,3.25000414,88.664,88.613,2.21986361]
[1772070935433,3.25000414,88.659,88.62,3.91816021]
[1772070936320,3.25000414,88.657,88.61,3.91816021]
[1772070936531,3.25000414,88.657,88.62,3.91816021]
[1772070938538,3.91816021,88.66,88.62,3.91816021]
[1772070938539,3.25000414,88.655,88.62,3.91816021]
[1772070941920,3.25000414,88.655,88.615,2.21883262]
[1772070941921,3.25000414,88.653,88.63,3.91816021]
[1772070942620,4.11816021,88.67,88.621,11.28400717]
[1772070942621,3.25000414,88.668,88.641,2.21755151]
[1772070942836,0.2,88.67,88.65,3.91816021]
[1772070943821,14.72789264,88.67,88.65,3.91816021]
[1772070944117,3.25000414,88.669,88.65,3.91816021]
[1772070944934,3.25000414,88.669,88.63,3.91816021]
[1772070946242,43.59047749,88.67,88.63,15.20097793]
[1772070946243,3.25000414,88.667,88.63,15.20097793]
[1772070947133,3.25000414,88.667,88.631,2.21627926]
[1772070948643,28.39442878,88.67,88.63,15.20097793]
[1772070948644,3.25000414,88.665,88.632,13.49828595]
[1772070949246,3.25000414,88.665,88.632,11.28260673]
[1772070950246,3.25000414,88.663,88.63,3.91816021]
[1772070952343,3.25000414,88.661,88.63,3.91816021]
[1772070954334,11.27904353,88.66,88.63,3.91816021]
[1772070954631,3.25000414,88.659,88.63,3.91816021]
[1772070955043,3.25000414,88.659,88.63,15.20096137]
[1772070955640,3.25000414,88.659,88.631,2.21163093]
[1772070955842,3.25000414,88.659,88.64,3.91816021]
[1772070956043,0.2,88.67,88.64,3.91816021]
[1772070956044,0.2,88.67,88.641,2.21163093]
[1772070956256,3.5376907,88.669,88.65,3.91816021]
[1772070956446,3.5376907,88.667,88.642,2.20955435]
[1772070958637,3.5376907,88.665,88.642,2.20955435]
[1772070960442,3.5376907,88.665,88.64,3.91816021]
[1772070960644,3.5376907,88.659,88.62,3.91816021]
[1772070961249,0.2,88.67,88.641,2.19952677]
[1772070961550,14.8155894,88.669,88.649,2.19952677]
[1772070961748,3.5376907,88.668,88.641,2.19952677]
[1772070962655,3.5376907,88.668,88.642,11.2813339]
[1772070962860,3.5376907,88.675,88.66,3.91816021]
[1772070963069,11.27199544,88.716,88.664,2.19757698]
[1772070963356,3.5376907,88.698,88.652,2.19565983]
[1772070963733,3.5376907,88.698,88.66,3.91816021]
[1772070963945,0.1,88.7,88.681,2.19565983]
[1772070964151,0.61040452,88.707,88.69,3.91816021]
[1772070965359,11.47279899,88.71,88.69,3.91816021]
[1772070965360,0.2,88.71,88.69,3.91816021]
[1772070965543,0.1,88.72,88.701,3.46638993]
[1772070965743,0.2,88.73,88.711,3.46638993]
[1772070965954,0.2,88.73,88.72,3.91816021]
[1772070966257,0.2,88.73,88.711,3.46638993]
[1772070966258,3.7376907,88.73,88.71,3.91816021]
[1772070966438,0.2,88.73,88.711,3.46638993]
[1772070966853,0.2,88.73,88.72,3.91816021]
[1772070967448,3.5376907,88.758,88.721,11.27128864]
[1772070967655,3.5376907,88.758,88.73,3.91816021]
[1772070967843,3.5376907,88.758,88.722,3.46638993]
[1772070968041,3.5376907,88.758,88.72,3.91816021]
[1772070969062,3.5376907,88.758,88.67,45.11103468]
[1772070969063,3.5376907,88.747,88.71,3.91816021]
[1772070969565,3.5376907,88.739,88.7,3.91816021]
[1772070969859,3.5376907,88.729,88.69,3.91816021]
[1772070970060,3.5376907,88.719,88.68,3.91816021]
[1772070970859,3.5376907,88.719,88.67,3.91816021]
[1772070971058,3.5376907,88.709,88.67,3.91816021]
[1772070971847,3.5376907,88.699,88.65,3.91816021]
[1772070972149,3.5376907,88.699,88.66,3.91816021]
[1772070972362,3.5376907,88.699,88.661,3.46638993]
[1772070972949,3.5376907,88.689,88.653,3.46638993]
[1772070973151,3.5376907,88.689,88.65,3.91816021]
[1772070974954,11.27548259,88.688,88.66,3.91816021]
[1772070975164,3.5376907,88.695,88.661,3.46638993]
[1772070975355,11.26836743,88.744,88.681,3.46638993]
[1772070975558,7.06667484,88.82,88.731,3.46638993]
[1772070975770,3.91816021,88.79,88.75,3.91816021]
[1772070975974,39.41219525,88.805,88.777,5.89225225]
[1772070976169,39.41219525,88.805,88.76,3.91816021]
[1772070976467,39.41219525,88.805,88.77,7.38455014]
[1772070976778,3.91816021,88.79,88.75,7.38455014]
[1772070976972,39.41929743,88.789,88.75,7.38455014]
[1772070977155,39.41929743,88.789,88.751,3.46638993]
[1772070977353,11.26210463,88.794,88.761,3.46638993]
[1772070977556,11.26210463,88.794,88.771,3.46638993]
[1772070977767,14.79979533,88.794,88.761,3.46638993]
[1772070977970,3.5376907,88.793,88.761,3.46638993]
[1772070978172,3.5376907,88.793,88.752,3.46638993]
[1772070978481,3.5376907,88.793,88.761,3.46638993]
[1772070979267,3.69383402,88.824,88.751,3.46638993]
[1772070979268,3.5376907,88.789,88.751,3.46638993]
[1772070980380,3.5376907,88.789,88.76,10.45568986]
[1772070981077,3.5376907,88.789,88.751,3.41644488]
[1772070981286,3.5376907,88.787,88.76,10.45509075]
[1772070982084,3.5376907,88.787,88.737,11.26925634]
[1772070982255,3.5376907,88.787,88.76,10.45509075]
[1772070982774,3.5376907,88.787,88.75,13.92148068]
[1772070983363,10.45509075,88.79,88.75,13.92148068]
[1772070983364,3.5376907,88.785,88.75,13.92148068]
[1772070983561,39.42062937,88.786,88.73,10.45509075]
[1772070983562,3.5376907,88.769,88.73,10.45509075]
[1772070983873,10.45509075,88.76,88.72,10.45509075]
[1772070984052,3.5376907,88.759,88.72,10.45509075]
[1772070985470,39.43306518,88.758,88.72,10.45509075]
[1772070985670,3.5376907,88.757,88.72,10.45509075]
[1772070988572,3.3609118,88.755,88.721,3.29632692]
[1772070989382,3.3609118,88.755,88.71,10.45509075]
[1772070989558,3.3609118,88.749,88.711,3.29632692]
[1772070990078,3.3609118,88.749,88.721,3.29632692]
[1772070990279,39.43395375,88.756,88.73,10.45509075]
[1772070990667,3.3609118,88.756,88.73,10.45509075]
[1772070991561,3.3609118,88.756,88.721,3.29632692]
[1772070991887,3.3609118,88.768,88.731,3.29632692]
[1772070992184,3.3609118,88.768,88.73,10.45509075]
[1772070992979,10.45509075,88.77,88.73,10.45509075]
[1772070992980,3.30635532,88.766,88.73,10.45509075]
[1772070993176,3.30635532,88.759,88.72,10.45509075]
[1772070993477,3.30635532,88.759,88.72,13.80067178]
[1772070993665,3.30635532,88.759,88.721,3.34558103]
[1772070994066,3.30635532,88.759,88.712,3.34558103]
[1772070994367,3.30635532,88.749,88.712,3.34558103]
[1772070994568,39.4290671,88.767,88.731,3.34558103]
[1772070994569,3.30635532,88.759,88.731,3.34558103]
[1772070995670,3.30635532,88.757,88.721,3.34558103]
[1772070995979,3.30635532,88.757,88.709,11.27269308]
[1772070996171,3.30635532,88.757,88.711,3.34558103]
[1772070997064,3.30635532,88.755,88.72,13.80067178]
[1772070997666,3.30635532,88.749,88.701,3.34558103]
[1772070997884,84.50132947,88.756,88.693,3.34558103]
[1772070997885,3.30635532,88.729,88.693,3.34558103]
[1772070998995,3.30635532,88.727,88.685,3.34558103]
[1772070999985,3.30635532,88.719,88.685,3.34558103]
[1772071001078,3.30635532,88.717,88.685,3.34558103]
[1772071002884,10.45509075,88.71,88.671,3.34558103]
[1772071003084,11.27281335,88.709,88.681,3.34558103]
[1772071004471,3.30635532,88.739,88.701,3.34558103]
[1772071005199,3.30635532,88.737,88.701,3.34558103]
[1772071006777,11.26912934,88.738,88.711,3.34558103]
[1772071007174,11.26836743,88.744,88.711,3.34558103]
[1772071007374,11.26836743,88.744,88.713,3.34558103]
[1772071007981,3.30635532,88.743,88.713,3.34558103]
[1772071008181,3.30635532,88.743,88.71,10.45509075]
[1772071008385,3.30635532,88.739,88.706,3.34558103]
[1772071009293,3.30635532,88.737,88.706,3.34558103]
[1772071011770,39.44284167,88.736,88.706,3.34558103]
[1772071011989,3.30635532,88.735,88.706,3.34558103]
[1772071012490,3.30635532,88.735,88.691,3.34558103]
[1772071012668,3.30635532,88.729,88.691,3.34558103]
[1772071013090,3.30635532,88.729,88.692,3.34558103]
[1772071013787,3.30635532,88.727,88.692,3.34558103]
[1772071013985,3.30635532,88.719,88.683,3.34558103]
[1772071015286,3.30635532,88.719,88.691,3.34558103]
[1772071015883,3.52944372,88.717,88.67,11.27777151]
[1772071016094,3.52944372,88.717,88.681,3.38807739]
[1772071019293,3.52944372,88.715,88.681,3.38807739]
[1772071020382,11.27083439,88.725,88.701,3.38807739]
[1772071021201,3.52944372,88.724,88.684,3.38807739]
[1772071021577,3.52944372,88.719,88.68,3.90978678]
[1772071021787,3.52944372,88.719,88.676,3.38807739]
[1772071022401,3.52944372,88.717,88.681,3.38807739]
[1772071022579,11.27166978,88.718,88.691,3.38807739]
[1772071022780,11.26938333,88.736,88.701,3.38807739]
[1772071023304,3.52944372,88.735,88.701,3.38807739]
[1772071025305,11.26963734,88.734,88.703,3.38807739]
[1772071025794,11.26963734,88.734,88.711,3.38807739]
[1772071026299,11.26862139,88.742,88.711,3.38807739]
[1772071027605,3.52944372,88.739,88.7,10.46729429]
[1772071027983,3.52944372,88.739,88.701,3.38807739]
[1772071028785,10.46729429,88.72,88.682,3.38807739]
[1772071029001,3.52944372,88.719,88.682,3.38807739]
[1772071029492,84.51466046,88.742,88.671,3.38807739]
[1772071029493,3.52944372,88.709,88.671,3.38807739]
[1772071030498,28.17589069,88.729,88.691,3.38807739]
[1772071030993,11.27039942,88.728,88.691,3.38807739]
[1772071031410,3.52944372,88.728,88.701,3.38807739]
[1772071033189,14.79920806,88.733,88.701,3.38807739]
[1772071033390,3.52944372,88.732,88.701,3.38807739]
[1772071033598,11.27001837,88.731,88.701,3.38807739]
[1772071033799,3.52944372,88.73,88.701,3.38807739]
[1772071036107,3.52944372,88.728,88.691,3.38807739]
[1772071038289,14.79997016,88.727,88.692,3.38807739]
[1772071038494,3.52944372,88.726,88.692,3.38807739]
[1772071040609,14.80022422,88.725,88.694,3.38807739]
[1772071043503,3.52944372,88.724,88.694,3.38807739]
[1772071045219,3.52944372,88.724,88.695,11.2745927]
[1772071045427,3.52944372,88.731,88.696,3.38807739]
[1772071048108,3.3919796,88.729,88.696,3.38807739]
[1772071050318,3.3919796,88.727,88.657,62.2]
[1772071050623,11.27039942,88.728,88.691,3.21750176]
[1772071050827,14.66237902,88.728,88.691,3.21750176]
[1772071051724,3.3919796,88.727,88.691,3.21750176]
[1772071052532,11.27065347,88.726,88.693,3.22363024]
[1772071053030,14.67933936,88.726,88.693,3.22363024]
[1772071054807,14.67933936,88.726,88.701,3.22363024]
[1772071055212,3.40868589,88.746,88.701,3.22363024]
[1772071055412,3.40868589,88.762,88.724,3.22363024]
[1772071056827,3.40868589,88.762,88.705,28.1832052]
[1772071056828,3.40868589,88.759,88.71,7.13233335]
[1772071057005,3.40868589,88.759,88.711,3.22363024]
[1772071057204,3.40868589,88.749,88.71,3.90870311]
[1772071057510,3.90870311,88.75,88.704,3.22363024]
[1772071057511,3.40868589,88.739,88.704,3.22363024]
[1772071057718,3.40868589,88.739,88.705,3.22363024]
[1772071058827,3.40868589,88.737,88.705,3.22363024]
[1772071059027,3.40868589,88.737,88.71,3.90870311]
[1772071059224,11.26811349,88.746,88.721,3.22363024]
[1772071059410,11.26759552,88.751,88.73,7.13233335]
[1772071059612,11.26759552,88.751,88.731,3.22363024]
[1772071060731,11.26759552,88.751,88.72,3.90870311]
[1772071060732,3.40868589,88.75,88.721,3.22363024]
[1772071061529,11.26773259,88.749,88.722,3.22363024]
[1772071062623,11.26773259,88.749,88.724,3.22363024]
[1772071063727,3.40868589,88.759,88.713,3.22363024]
[1772071065027,3.40868589,88.749,88.71,7.13233335]
[1772071065229,3.40868589,88.749,88.711,3.22363024]
[1772071066541,3.40868589,88.747,88.711,3.22363024]
[1772071067929,3.40868589,88.739,88.705,3.22363024]
[1772071068629,3.40868589,88.739,88.688,28.18861742]
[1772071068630,3.40868589,88.709,88.642,3.22363024]
[1772071068806,3.40868589,88.659,88.611,3.22363024]
[1772071069124,3.40868589,88.649,88.611,3.22363024]
[1772071070334,3.40868589,88.649,88.62,3.90870311]
[1772071070538,3.40868589,88.659,88.621,3.22363024]
[1772071070747,11.27929797,88.658,88.622,11.28387984]
[1772071070917,11.27814975,88.668,88.631,3.22363024]
[1772071071237,3.40868589,88.667,88.631,3.22363024]
[1772071072848,3.40868589,88.665,88.631,3.22363024]
[1772071074035,3.40868589,88.665,88.632,3.22363024]
[1772071075531,3.40868589,88.663,88.632,3.17866011]
[1772071075736,3.40868589,88.663,88.63,3.90870311]
[1772071075944,3.40868589,88.663,88.628,11.28301439]
[1772071076742,3.30374089,88.661,88.621,11.28400717]
[1772071077528,3.30374089,88.661,88.622,3.17995194]
[1772071080437,3.30374089,88.659,88.616,3.17995194]
[1772071080743,3.30374089,88.639,88.61,0.2]
[1772071081341,3.30374089,88.639,88.61,11.4853194]
[1772071082132,3.30374089,88.639,88.61,15.39402251]
[1772071082333,3.30374089,88.649,88.621,3.17995194]
[1772071082525,14.58423341,88.649,88.621,3.17995194]
[1772071082936,3.30374089,88.648,88.621,3.17995194]
[1772071084533,14.58431123,88.648,88.621,3.17995194]
[1772071084716,3.30374089,88.647,88.621,3.17995194]
[1772071085426,3.30374089,88.647,88.614,3.17995194]
[1772071085822,3.30374089,88.645,88.614,3.17995194]
[1772071086036,3.30374089,88.645,88.615,11.2847712]
[1772071086241,3.30374089,88.645,88.615,14.46472314]
[1772071086835,3.30374089,88.645,88.61,15.39403719]
[1772071087025,3.30374089,88.645,88.61,11.48533408]
[1772071087419,3.30374089,88.645,88.61,0.2]
[1772071087625,3.30374089,88.639,88.61,0.2]
[1772071088134,3.30374089,88.637,88.61,0.2]
[1772071088328,3.30374089,88.637,88.61,4.10870311]
[1772071088523,3.30374089,88.647,88.611,11.2852806]
[1772071088835,3.30374089,88.649,88.61,0.2]
[1772071090328,3.30374089,88.647,88.61,14.66527651]
[1772071090525,3.30374089,88.647,88.611,3.17995194]
[1772071092322,3.30374089,88.647,88.613,3.17995194]
[1772071092526,11.28082485,88.646,88.613,3.17995194]
[1772071094053,14.58456574,88.646,88.613,3.17995194]
[1772071094343,3.30374089,88.645,88.613,3.17995194]
[1772071094529,3.30374089,88.643,88.615,3.17995194]
[1772071097858,11.2813339,88.642,88.615,3.17995194]
[1772071098030,3.30374089,88.641,88.615,3.17995194]
[1772071099226,14.58532933,88.64,88.615,3.17995194]
[1772071099545,3.30374089,88.639,88.615,3.17995194]
[1772071101740,3.30374089,88.639,88.617,3.17995194]
[1772071104749,3.30374089,88.637,88.617,3.17995194]
[1772071106133,3.30374089,88.637,88.619,3.32535456]
[1772071110333,3.30374089,88.637,88.619,14.60951362]
[1772071110846,3.30374089,88.637,88.62,3.32535456]
[1772071112146,3.20789654,88.643,88.62,3.32535456]
[1772071112945,3.20789654,88.643,88.622,3.21839328]
[1772071114160,3.20789654,88.643,88.616,3.21839328]
[1772071114359,3.20789654,88.639,88.61,0.2]
[1772071115053,3.20789654,88.639,88.611,3.21839328]
[1772071115250,3.20789654,88.648,88.612,3.21839328]
[1772071115844,3.20789654,88.648,88.621,3.21839328]
[1772071116564,3.20789654,88.646,88.615,3.21839328]
[1772071119153,3.20789654,88.644,88.611,11.2852806]
[1772071120642,3.20789654,88.642,88.611,14.50367388]
[1772071122441,3.20789654,88.64,88.611,11.2852806]
[1772071122664,3.20789654,88.64,88.61,0.2]
[1772071122665,3.20789654,88.639,88.61,0.2]
[1772071123341,3.20789654,88.639,88.611,14.50367388]
[1772071123564,3.91578745,88.65,88.611,14.50367388]
[1772071123565,3.20789654,88.645,88.612,3.21839328]
[1772071123962,3.20789654,88.651,88.612,3.21839328]
[1772071124269,3.20789654,88.651,88.621,3.21839328]
[1772071124471,3.20789654,88.651,88.621,14.50231239]
[1772071124781,3.20789654,88.651,88.622,3.21839328]
[1772071125350,3.20789654,88.639,88.611,11.2852806]
[1772071126660,3.20789654,88.639,88.612,3.21839328]
[1772071129767,3.20789654,88.639,88.61,0.2]
[1772071129768,3.20789654,88.653,88.614,3.21839328]
[1772071129975,3.20789654,88.653,88.621,3.21839328]
[1772071131069,3.20789654,88.662,88.621,3.21839328]
[1772071131278,3.20789654,88.662,88.631,3.21839328]
[1772071131966,3.20789654,88.662,88.632,11.28260673]
[1772071132166,3.20789654,88.662,88.633,3.21839328]
[1772071132370,3.20789654,88.662,88.64,7.13418073]
[1772071132675,3.20789654,88.662,88.641,3.21839328]